bitfinex/quotes_BTCUSD_20230115
["timestamp","ask_amount","ask_price","bid_price","bid_amount"]
[1673765668121,0.52613568,20737.0,20736.0,0.07618164]
[1673765668878,0.30965266,20737.0,20736.0,0.07618164]
[1673765669093,0.53413568,20737.0,20736.0,0.09018164]
[1673765672657,0.31765266,20737.0,20736.0,0.09018164]
[1673765672954,0.53413568,20737.0,20736.0,0.09018164]
[1673765674644,0.6784425,20737.0,20736.0,0.09018164]
[1673765676143,0.46195948,20737.0,20736.0,0.09018164]
[1673765678123,0.6784425,20737.0,20736.0,0.09018164]
[1673765678906,1.01636468,20737.0,20736.0,0.09018164]
[1673765679157,1.01636468,20737.0,20736.0,0.014]
[1673765679401,1.29498889,20737.0,20736.0,0.014]
[1673765679908,1.43930449,20737.0,20736.0,0.014]
[1673765680929,1.46444149,20737.0,20736.0,0.014]
[1673765681178,1.32012589,20737.0,20736.0,0.014]
[1673765681473,1.29498889,20737.0,20736.0,0.014]
[1673765682186,1.29498889,20737.0,20736.0,0.09018164]
[1673765682442,1.43930893,20737.0,20736.0,0.09018164]
[1673765683755,1.29498889,20737.0,20736.0,0.09018164]
[1673765684031,1.32012589,20737.0,20736.0,0.09018164]
[1673765684277,1.58357774,20737.0,20736.0,0.09018164]
[1673765685009,1.58357774,20737.0,20736.0,0.014]
[1673765685506,1.36709472,20737.0,20736.0,0.014]
[1673765685771,1.91146332,20737.0,20736.0,0.014]
[1673765686759,1.62287447,20737.0,20736.0,0.014]
[1673765687011,1.59773747,20737.0,20736.0,0.014]
[1673765687263,1.88664839,20737.0,20736.0,0.014]
[1673765688784,1.91178539,20737.0,20736.0,0.014]
[1673765689036,1.88664839,20737.0,20736.0,0.014]
[1673765689543,1.88672001,20737.0,20736.0,0.014]
[1673765690014,1.52598394,20737.0,20736.0,0.014]
[1673765690268,1.26044803,20737.0,20736.0,0.014]
[1673765690529,1.56306343,20737.0,20736.0,0.014]
[1673765690785,1.56306343,20737.0,20736.0,0.09278138]
[1673765691044,1.41902049,20737.0,20736.0,0.09278138]
[1673765691290,1.41902039,20737.0,20736.0,0.09278138]
[1673765692939,1.41902709,20737.0,20736.0,0.09278138]
[1673765693441,1.13011617,20737.0,20736.0,0.09278138]
[1673765695725,1.41902709,20737.0,20736.0,0.09278138]
[1673765695977,1.38554691,20737.0,20736.0,0.014]
[1673765696238,1.20232736,20737.0,20736.0,0.014]
[1673765696494,1.72115251,20737.0,20736.0,0.014]
[1673765697008,1.74628951,20737.0,20736.0,0.014]
[1673765697517,1.36041644,20737.0,20736.0,0.014]
[1673765697763,1.72115251,20737.0,20736.0,0.014]
[1673765698040,1.20232736,20737.0,20736.0,0.014]
[1673765698300,1.41899247,20737.0,20736.0,0.014]
[1673765698528,1.20232736,20737.0,20736.0,0.014]
[1673765699032,1.72113743,20737.0,20736.0,0.014]
[1673765699304,1.74627443,20737.0,20736.0,0.014]
[1673765700020,1.72113743,20737.0,20736.0,0.014]
[1673765700267,1.74627443,20737.0,20736.0,0.014]
[1673765700519,1.74622202,20737.0,20736.0,0.014]
[1673765701024,2.03505088,20737.0,20736.0,0.014]
[1673765701278,2.03505088,20737.0,20736.0,0.013436]
[1673765701767,2.00991388,20737.0,20736.0,0.013436]
[1673765702016,2.03505088,20737.0,20736.0,0.013436]
[1673765702480,2.00991388,20737.0,20736.0,0.013436]
[1673765702736,2.03505088,20737.0,20736.0,0.013436]
[1673765702987,2.00991388,20737.0,20736.0,0.013436]
[1673765703237,1.74622202,20737.0,20736.0,0.013436]
[1673765704017,2.03502672,20737.0,20736.0,0.013436]
[1673765704517,2.00988972,20737.0,20736.0,0.013436]
[1673765704771,2.03502672,20737.0,20736.0,0.013436]
[1673765705292,2.00988972,20737.0,20736.0,0.013436]
[1673765705518,2.03502672,20737.0,20736.0,0.013436]
[1673765705772,2.00988972,20737.0,20736.0,0.013436]
[1673765706032,2.03502672,20737.0,20736.0,0.013436]
[1673765706307,2.00988972,20737.0,20736.0,0.013436]
[1673765706561,2.03502672,20737.0,20736.0,0.013436]
[1673765706815,2.00988972,20737.0,20736.0,0.013436]
[1673765707072,2.03502672,20737.0,20736.0,0.013436]
[1673765707298,2.00988972,20737.0,20736.0,0.013436]
[1673765707552,2.03502672,20737.0,20736.0,0.013436]
[1673765707800,2.00990413,20737.0,20736.0,0.013436]
[1673765708045,2.03504113,20737.0,20736.0,0.013436]
[1673765708542,2.00990413,20737.0,20736.0,0.013436]
[1673765708804,2.03505629,20737.0,20736.0,0.013436]
[1673765709570,2.00991929,20737.0,20736.0,0.013436]
[1673765709812,2.03505629,20737.0,20736.0,0.013436]
[1673765710059,1.49109406,20737.0,20736.0,0.013436]
[1673765710273,1.7077223,20737.0,20736.0,0.013436]
[1673765711607,1.70772118,20737.0,20736.0,0.013436]
[1673765713290,1.7077237,20737.0,20736.0,0.013436]
[1673765713780,1.7077237,20737.0,20736.0,0.09441433]
[1673765714519,1.41890459,20737.0,20736.0,0.09441433]
[1673765714768,1.56334722,20737.0,20736.0,0.09441433]
[1673765715270,0.90262229,20737.0,20736.0,1.04422361]
[1673765715512,0.90262229,20737.0,20736.0,0.90027855]
[1673765715768,0.90262229,20737.0,20736.0,2.00891183]
[1673765716014,0.90262229,20737.0,20736.0,3.18934203]
[1673765716276,0.90262229,20737.0,20736.0,3.59835571]
[1673765716520,0.90262229,20737.0,20736.0,3.74293214]
[1673765716796,0.90262229,20737.0,20736.0,3.25835692]
[1673765717036,0.90262229,20737.0,20736.0,3.80068094]
[1673765717288,0.90262229,20737.0,20736.0,3.65610451]
[1673765717544,0.90262229,20737.0,20736.0,3.80058912]
[1673765718055,0.90262229,20737.0,20736.0,3.9450732]
[1673765718304,0.90262229,20737.0,20736.0,3.40274929]
[1673765718815,0.90262229,20737.0,20736.0,3.97376709]
[1673765719065,0.90262229,20737.0,20736.0,4.26166602]
[1673765719312,0.90262229,20737.0,20736.0,4.11818747]
[1673765719586,0.90262229,20737.0,20736.0,3.54716967]
[1673765719834,0.90262229,20737.0,20736.0,4.04917189]
[1673765720525,0.90262229,20737.0,20736.0,3.49621315]
[1673765721027,0.90262229,20737.0,20736.0,2.31560073]
[1673765725800,0.90254534,20737.0,20736.0,2.11359851]
[1673765726075,0.29977741,20743.0,20737.0,1.28907138]
[1673765726332,0.26886231,20742.0,20739.0,1.03396273]
[1673765726591,0.26886231,20742.0,20740.0,0.90993196]
[1673765726810,0.26886231,20742.0,20741.0,0.190049]
[1673765728611,0.00545211,20743.0,20741.0,1.31604753]
[1673765728855,0.00545211,20743.0,20742.0,0.321185]
[1673765729632,0.22484466,20743.0,20741.0,1.12599853]
[1673765729886,0.22484466,20743.0,20741.0,0.057]
[1673765729887,0.3903689,20742.0,20741.0,0.057]
[1673765730120,0.3903689,20742.0,20739.0,0.75956162]
[1673765730121,0.0139,20742.0,20739.0,0.75956162]
[1673765730374,1.41025283,20742.0,20739.0,0.75956162]
[1673765730621,0.025137,20741.0,20739.0,0.75956162]
[1673765730897,0.48216,20740.0,20739.0,0.75956162]
[1673765731403,0.74877612,20740.0,20739.0,0.75956162]
[1673765731925,0.96432,20740.0,20739.0,0.75956162]
[1673765732270,0.989457,20740.0,20739.0,0.85056162]
[1673765732540,1.29112807,20740.0,20739.0,0.75956162]
[1673765732797,1.29112807,20740.0,20739.0,0.84756162]
[1673765733054,1.26599107,20740.0,20739.0,0.84756162]
[1673765733312,1.27552842,20740.0,20739.0,1.02726299]
[1673765734892,1.27552842,20740.0,20739.0,0.84756162]
[1673765735103,1.56819963,20740.0,20739.0,0.84756162]
[1673765735625,1.54306263,20740.0,20739.0,0.84756162]
[1673765735873,1.56391208,20740.0,20739.0,0.84756162]
[1673765736136,1.53877508,20740.0,20739.0,1.08756162]
[1673765736392,1.56391208,20740.0,20739.0,1.08756162]
[1673765736902,1.39433245,20740.0,20739.0,1.08756162]
[1673765737164,1.56391208,20740.0,20739.0,1.29126298]
[1673765737417,0.48616,20740.0,20739.0,1.29126298]
[1673765737703,0.004,20740.0,20739.0,1.90165099]
[1673765742390,0.004,20740.0,20739.0,1.29126298]
[1673765742655,0.004,20740.0,20739.0,2.57691798]
[1673765743153,0.004,20740.0,20739.0,3.08991798]
[1673765744191,0.004,20740.0,20739.0,3.51499561]
[1673765746269,0.004,20740.0,20739.0,3.65929672]
[1673765747838,0.00393954,20740.0,20739.0,3.65929672]
[1673765749067,0.00393954,20740.0,20739.0,3.23421909]
[1673765749559,0.00393954,20740.0,20739.0,3.86804853]
[1673765750058,0.00393954,20740.0,20739.0,3.23421909]
[1673765750554,0.00393954,20740.0,20739.0,2.33035636]
[1673765750802,0.00393954,20740.0,20739.0,2.47465747]
[1673765751073,0.00393954,20740.0,20739.0,3.0012957]
[1673765751575,0.00393954,20740.0,20739.0,2.47465747]
[1673765751822,0.00393954,20740.0,20739.0,3.00490043]
[1673765752588,0.00393954,20740.0,20739.0,2.86059932]
[1673765752841,0.00393954,20740.0,20739.0,3.00490043]
[1673765753090,0.00393954,20740.0,20739.0,2.86059932]
[1673765753561,0.00393954,20740.0,20739.0,2.47465747]
[1673765754562,0.00393954,20740.0,20739.0,2.69110914]
[1673765754859,0.00393954,20740.0,20739.0,3.31789311]
[1673765755367,0.00545211,20743.0,20739.0,5.24127074]
[1673765755583,0.00545211,20743.0,20740.0,1.00213159]
[1673765755801,0.00545211,20743.0,20741.0,1.285526]
[1673765756165,0.00545211,20743.0,20742.0,0.189985]
[1673765756378,0.00545211,20743.0,20742.0,0.672098]
[1673765757266,0.00545211,20743.0,20742.0,1.16250903]
[1673765757481,0.00545211,20743.0,20742.0,1.34121913]
[1673765757957,0.00545211,20743.0,20742.0,1.43021913]
[1673765759731,0.00545211,20743.0,20742.0,0.94810613]
[1673765760197,0.00545211,20743.0,20742.0,0.76939603]
[1673765760410,0.00545211,20743.0,20742.0,0.57941103]
[1673765761590,0.00545211,20743.0,20742.0,0.57918903]
[1673765768621,0.00545211,20743.0,20742.0,0.5790975]
[1673765769346,1e-08,20743.0,20742.0,2.03581603]
[1673765769599,1e-08,20743.0,20742.0,2.461124]
[1673765770108,1e-08,20743.0,20742.0,3.22957567]
[1673765770594,1e-08,20743.0,20742.0,3.013124]
[1673765771138,1e-08,20743.0,20742.0,2.49604646]
[1673765771380,1e-08,20743.0,20742.0,3.67237552]
[1673765771655,1e-08,20743.0,20742.0,5.48584811]
[1673765771914,0.005329,20746.0,20743.0,5.999e-05]
[1673765772164,0.005329,20746.0,20745.0,0.1]
[1673765772414,0.005329,20746.0,20745.0,2.27504173]
[1673765772669,0.005329,20746.0,20745.0,2.41737521]
[1673765772917,0.005329,20746.0,20745.0,2.56151747]
[1673765773159,0.005329,20746.0,20745.0,2.91878943]
[1673765773917,0.005329,20746.0,20745.0,3.01078943]
[1673765774167,0.005329,20746.0,20745.0,4.90475173]
[1673765774417,0.005329,20746.0,20745.0,4.90442361]
[1673765774680,0.21862424,20747.0,20745.0,4.81242361]
[1673765774681,0.21395324,20747.0,20745.0,4.81242361]
[1673765774912,0.21395324,20747.0,20746.0,1.53686611]
[1673765775160,0.21395324,20747.0,20746.0,2.50090611]
[1673765775408,0.21395324,20747.0,20746.0,2.33430143]
[1673765775682,0.21395324,20747.0,20746.0,2.19037953]
[1673765776728,0.21395324,20747.0,20746.0,1.80517784]
[1673765776997,0.20395324,20747.0,20746.0,1.80517784]
[1673765777472,0.20395324,20747.0,20746.0,1.41515784]
[1673765778001,0.20395324,20747.0,20746.0,1.23115784]
[1673765778260,0.20395324,20747.0,20746.0,1.53045864]
[1673765779036,0.19395324,20747.0,20746.0,1.53045864]
[1673765779302,0.19395324,20747.0,20746.0,1.43845864]
[1673765779565,0.19395324,20747.0,20746.0,2.01247864]
[1673765780338,0.19395324,20747.0,20746.0,1.4532328]
[1673765780601,0.19395324,20747.0,20746.0,2.10701453]
[1673765781395,0.18395324,20747.0,20746.0,1.4532328]
[1673765782677,0.18395324,20747.0,20746.0,1.9714492]
[1673765783431,0.17395324,20747.0,20746.0,1.5532328]
[1673765783728,0.17395324,20747.0,20746.0,1.94818578]
[1673765783932,0.17395324,20747.0,20746.0,1.4532328]
[1673765784192,0.17395324,20747.0,20746.0,1.5532328]
[1673765785264,0.17395324,20747.0,20746.0,1.4532328]
[1673765786048,0.17395324,20747.0,20746.0,1.5532328]
[1673765786389,0.17395324,20747.0,20746.0,1.9971547]
[1673765786680,0.17395324,20747.0,20746.0,1.8532328]
[1673765787415,0.17395324,20747.0,20746.0,1.4532328]
[1673765787695,0.17395324,20747.0,20746.0,1.5532328]
[1673765787975,0.17395324,20747.0,20746.0,1.4532328]
[1673765788219,0.17395324,20747.0,20746.0,1.5532328]
[1673765788476,0.17395324,20747.0,20746.0,2.03043449]
[1673765788721,0.14895324,20747.0,20746.0,2.17435639]
[1673765788999,0.14895324,20747.0,20746.0,2.03043449]
[1673765789243,0.14895324,20747.0,20746.0,2.47435639]
[1673765790740,0.14895324,20747.0,20746.0,2.07435639]
[1673765790997,0.14895324,20747.0,20746.0,1.93043449]
[1673765791732,0.14895324,20747.0,20746.0,2.17043449]
[1673765791987,0.14895324,20747.0,20746.0,2.61435639]
[1673765792485,0.12395324,20747.0,20746.0,2.61435639]
[1673765793220,0.12369653,20747.0,20746.0,3.25235242]
[1673765793471,0.12369653,20747.0,20746.0,2.61435639]
[1673765794485,0.09869653,20747.0,20746.0,2.61435639]
[1673765795794,0.09869653,20747.0,20746.0,2.31435639]
[1673765796046,0.09869653,20747.0,20746.0,2.66258215]
[1673765796596,0.25628073,20747.0,20746.0,1.70336046]
[1673765796776,0.09869653,20747.0,20746.0,1.70336046]
[1673765797297,0.09869653,20747.0,20746.0,1.51346846]
[1673765802444,0.09869653,20747.0,20746.0,1.83475746]
[1673765802717,0.09869653,20747.0,20746.0,2.31677746]
[1673765803525,0.09869653,20747.0,20746.0,1.9685517]
[1673765804313,0.09869653,20747.0,20746.0,2.55174782]
[1673765805611,0.09869653,20747.0,20746.0,2.58288784]
[1673765805880,0.09869653,20747.0,20746.0,1.9685517]
[1673765806135,0.09869653,20747.0,20746.0,2.51804066]
[1673765806392,0.09869653,20747.0,20746.0,3.3661411]
[1673765806644,0.09869653,20747.0,20746.0,2.73392593]
[1673765807979,0.09869653,20747.0,20746.0,5.28763669]
[1673765808245,0.09869653,20747.0,20746.0,5.09691074]
[1673765808496,0.09869653,20747.0,20746.0,4.44787345]
[1673765808760,0.09869653,20747.0,20746.0,5.66158224]
[1673765809756,0.09869653,20747.0,20746.0,4.80897248]
[1673765809760,0.09869653,20747.0,20746.0,5.2413274]
[1673765810011,0.09869653,20747.0,20746.0,4.02761861]
[1673765810273,0.09869653,20747.0,20746.0,3.84264775]
[1673765810274,0.25628073,20747.0,20746.0,3.84264775]
[1673765810532,0.09869653,20747.0,20746.0,3.16742464]
[1673765810796,0.09869653,20747.0,20746.0,3.38404913]
[1673765812837,0.09869653,20747.0,20746.0,3.09523224]
[1673765813329,0.09869653,20747.0,20746.0,3.38404913]
[1673765814364,0.09869653,20747.0,20746.0,3.16742464]
[1673765814652,0.09869653,20747.0,20746.0,3.3840823]
[1673765815126,0.09869653,20747.0,20746.0,3.3840822]
[1673765817892,0.09869653,20747.0,20746.0,3.09526531]
[1673765818141,0.09869653,20747.0,20746.0,3.23970562]
[1673765818382,0.09869653,20747.0,20746.0,3.09526531]
[1673765818875,0.09869653,20747.0,20746.0,1.32213241]
[1673765819391,0.09869653,20747.0,20746.0,1.10547485]
[1673765819880,0.09869653,20747.0,20746.0,0.332]
[1673765820646,0.39398604,20747.0,20746.0,0.332]
[1673765828399,1.38311704,20747.0,20746.0,0.332]
[1673765828654,1.38311704,20747.0,20746.0,0.33189798]
[1673765828924,1.52755967,20747.0,20746.0,0.2732]
[1673765829174,1.52855967,20747.0,20746.0,0.3582]
[1673765829689,1.50342267,20747.0,20746.0,0.3582]
[1673765829945,1.52855967,20747.0,20746.0,0.3582]
[1673765830202,1.38311704,20747.0,20746.0,0.2732]
[1673765830456,0.10669653,20747.0,20746.0,1.05037174]
[1673765830715,0.10669653,20747.0,20746.0,1.18093479]
[1673765831253,0.10669653,20747.0,20746.0,1.66295479]
[1673765831508,0.09869653,20747.0,20746.0,1.66295479]
[1673765831767,0.09969653,20747.0,20746.0,1.66295479]
[1673765832013,0.09869653,20747.0,20746.0,1.66295479]
[1673765832349,0.09969653,20747.0,20746.0,1.74795479]
[1673765832518,0.09869653,20747.0,20746.0,1.66295479]
[1673765833540,0.09969653,20747.0,20746.0,1.74795479]
[1673765834076,0.09869653,20747.0,20746.0,1.66295479]
[1673765834584,0.09969653,20747.0,20746.0,1.74795479]
[1673765835162,0.10069653,20747.0,20746.0,1.83295479]
[1673765835674,0.10069653,20747.0,20746.0,1.97739801]
[1673765837203,0.10069653,20747.0,20746.0,1.35093479]
[1673765843522,0.10069653,20747.0,20746.0,1.83295479]
[1673765843783,0.10069653,20747.0,20746.0,1.97739801]
[1673765844285,0.10069653,20747.0,20746.0,2.19405557]
[1673765844550,0.10069653,20747.0,20746.0,2.8049559]
[1673765845046,0.10069653,20747.0,20746.0,2.19405557]
[1673765845284,0.10069653,20747.0,20746.0,1.97739801]
[1673765846264,0.10069653,20747.0,20746.0,2.19405557]
[1673765846521,0.10069653,20747.0,20746.0,3.74496257]
[1673765847028,0.10069653,20747.0,20746.0,1.97739801]
[1673765849891,0.10069653,20747.0,20746.0,1.94419801]
[1673765850158,0.40626076,20747.0,20746.0,0.41]
[1673765850419,0.43139776,20747.0,20746.0,0.41]
[1673765850670,0.57584039,20747.0,20746.0,0.41]
[1673765850943,0.79047003,20747.0,20746.0,0.24]
[1673765851192,1.89884051,20747.0,20746.0,0.24]
[1673765851731,1.89884051,20747.0,20746.0,0.23993979]
[1673765852500,1.754335,20747.0,20746.0,0.23993979]
[1673765853294,1.6100214,20747.0,20746.0,0.23993979]
[1673765853548,1.6100214,20747.0,20746.0,0.24593979]
[1673765853806,1.6170214,20747.0,20746.0,0.24593979]
[1673765854111,1.6100214,20747.0,20746.0,0.23993979]
[1673765854394,1.6170214,20747.0,20746.0,0.24593979]
[1673765854639,1.76131948,20747.0,20746.0,0.24593979]
[1673765855448,2.05013859,20747.0,20746.0,0.24593979]
[1673765855689,1.83350895,20747.0,20746.0,0.24593979]
[1673765855952,2.0137922,20747.0,20746.0,0.24593979]
[1673765856230,2.2907652,20747.0,20746.0,0.24593979]
[1673765856489,1.8079643,20747.0,20746.0,0.24593979]
[1673765856781,1.52794472,20747.0,20746.0,0.24593979]
[1673765857044,1.62880197,20747.0,20746.0,0.27053377]
[1673765857292,1.8451828,20747.0,20746.0,0.24593979]
[1673765857545,1.98974802,20747.0,20746.0,0.24593979]
[1673765858065,2.20612888,20747.0,20746.0,0.24593979]
[1673765858256,2.06156735,20747.0,20746.0,0.24593979]
[1673765859011,1.81857274,20747.0,20746.0,0.24593979]
[1673765859256,1.60219191,20747.0,20746.0,0.24593979]
[1673765860750,1.38581105,20747.0,20746.0,0.24593979]
[1673765864542,1.36067405,20747.0,20746.0,0.24593979]
[1673765865589,1.45793433,20747.0,20746.0,0.24593979]
[1673765865833,1.50133097,20747.0,20746.0,0.24593979]
[1673765866083,2.37448056,20747.0,20746.0,0.24593979]
[1673765866359,1.85482538,20747.0,20746.0,0.22134582]
[1673765866592,2.21522029,20747.0,20746.0,0.22134582]
[1673765866899,1.91700795,20747.0,20746.0,0.22134582]
[1673765868096,1.93090795,20747.0,20746.0,0.22134582]
[1673765869165,1.93110795,20747.0,20746.0,0.22134582]
[1673765870443,2.29052983,20747.0,20746.0,0.22134582]
[1673765871697,2.54170248,20747.0,20746.0,0.22134582]
[1673765871947,2.29052983,20747.0,20746.0,0.22134582]
[1673765872722,2.29902983,20747.0,20746.0,0.22134582]
[1673765873990,2.55407382,20747.0,20746.0,0.22134582]
[1673765874223,1.93887881,20747.0,20746.0,0.006]
[1673765875437,2.29896297,20747.0,20746.0,0.006]
[1673765875977,2.29908886,20747.0,20746.0,0.006]
[1673765876233,1.93887881,20747.0,20746.0,0.006]
[1673765877281,3.42575227,20747.0,20739.0,0.6662971]
[1673765877528,0.129,20741.0,20738.0,1.0069]
[1673765877808,1.1470412,20740.0,20738.0,1.06935334]
[1673765878057,1.1219042,20740.0,20738.0,1.06935334]
[1673765878386,1.1219042,20740.0,20739.0,0.60642311]
[1673765878630,0.96432,20740.0,20739.0,0.60642311]
[1673765879117,0.989457,20740.0,20739.0,0.60642311]
[1673765879364,0.96432,20740.0,20738.0,0.6292]
[1673765879646,0.96432,20740.0,20738.0,1.0606005]
[1673765879898,0.96532,20740.0,20739.0,0.079]
[1673765880123,0.96432,20740.0,20738.0,1.0606005]
[1673765880353,0.96432,20740.0,20738.0,1.1396005]
[1673765880354,0.96532,20740.0,20738.0,1.1396005]
[1673765880588,0.96432,20740.0,20738.0,1.0606005]
[1673765880822,0.96532,20740.0,20739.0,0.079]
[1673765881297,0.990457,20740.0,20739.0,0.079]
[1673765881530,0.989457,20740.0,20738.0,1.0606005]
[1673765881770,0.96432,20740.0,20738.0,1.0606005]
[1673765882969,0.96532,20740.0,20738.0,1.1396005]
[1673765884459,0.96532,20740.0,20738.0,1.3596005]
[1673765885885,1.2561691,20740.0,20738.0,1.3596005]
[1673765886173,1.2561691,20740.0,20738.0,0.8492]
[1673765886424,0.025137,20739.0,20738.0,0.8492]
[1673765886678,0.025137,20739.0,20738.0,0.299]
[1673765886679,1.58687307,20739.0,20738.0,0.299]
[1673765887193,1.58687307,20739.0,20738.0,0.22]
[1673765887438,1.58887307,20739.0,20738.0,0.292]
[1673765887689,1.58687307,20739.0,20738.0,0.22]
[1673765887936,1.62354748,20739.0,20738.0,0.22]
[1673765888428,1.85206132,20739.0,20738.0,0.287]
[1673765888681,1.77810853,20739.0,20738.0,0.287]
[1673765888940,2.04925843,20739.0,20738.0,0.287]
[1673765889205,1.77610853,20739.0,20738.0,0.22]
[1673765889498,1.77810853,20739.0,20738.0,0.287]
[1673765889773,1.77610853,20739.0,20738.0,0.22]
[1673765890041,2.07136917,20739.0,20738.0,0.286]
[1673765890564,2.03810853,20739.0,20738.0,0.286]
[1673765892143,2.25420011,20739.0,20738.0,0.286]
[1673765892649,2.35245977,20739.0,20738.0,0.286]
[1673765892924,2.20839872,20739.0,20738.0,0.202355]
[1673765893186,2.35228658,20739.0,20738.0,0.202355]
[1673765894436,2.35103414,20739.0,20738.0,0.202355]
[1673765894686,2.20714628,20739.0,20738.0,0.202355]
[1673765895218,2.35099858,20739.0,20738.0,0.202355]
[1673765895726,1.93384688,20739.0,20738.0,0.202355]
[1673765895979,1.7177553,20739.0,20738.0,0.202355]
[1673765896258,1.98703399,20739.0,20738.0,0.202355]
[1673765896798,1.98703399,20739.0,20738.0,0.066]
[1673765897325,1.7177553,20739.0,20738.0,0.066]
[1673765897584,1.96788926,20739.0,20738.0,0.066]
[1673765898343,2.18398084,20739.0,20738.0,0.066]
[1673765898604,1.93384688,20739.0,20738.0,0.066]
[1673765898920,1.78999458,20739.0,20738.0,0.066]
[1673765899122,1.93384218,20739.0,20738.0,0.066]
[1673765900102,1.93383227,20739.0,20738.0,0.066]
[1673765900352,2.43275709,20739.0,20738.0,0.066]
[1673765902579,2.7575133,20739.0,20738.0,0.066]
[1673765903588,2.7555133,20739.0,20737.0,0.01136669]
[1673765903917,2.44488114,20739.0,20738.0,0.006]
[1673765904142,2.82181402,20739.0,20738.0,0.006]
[1673765904382,2.53409386,20739.0,20738.0,0.006]
[1673765904648,2.14894123,20739.0,20737.0,0.01136669]
[1673765904894,2.14894123,20739.0,20738.0,0.006]
[1673765904895,2.15642666,20739.0,20738.0,0.006]
[1673765905184,2.53419778,20739.0,20738.0,0.006]
[1673765905395,2.53419778,20739.0,20738.0,0.146]
[1673765906150,2.50919778,20739.0,20738.0,0.14]
[1673765906420,2.54319778,20739.0,20738.0,0.14]
[1673765906690,2.18855738,20739.0,20738.0,0.14]
[1673765906942,2.446075,20739.0,20738.0,0.145]
[1673765907210,2.73394104,20739.0,20738.0,0.145]
[1673765907459,2.51042342,20739.0,20738.0,0.145]
[1673765907733,2.22255738,20739.0,20738.0,0.145]
[1673765907985,2.51042379,20739.0,20738.0,0.145]
[1673765908238,2.50300551,20739.0,20738.0,0.145]
[1673765909274,2.22255738,20739.0,20738.0,0.145]
[1673765910019,2.51107916,20739.0,20738.0,0.14526]
[1673765910261,2.22255738,20739.0,20738.0,0.14526]
[1673765910773,1.86273712,20739.0,20738.0,0.14526]
[1673765911027,2.16778834,20739.0,20738.0,0.14526]
[1673765911286,2.22270834,20739.0,20738.0,0.14526]
[1673765912046,2.46721527,20739.0,20738.0,0.14526]
[1673765912592,1.86273712,20739.0,20738.0,0.14526]
[1673765913115,1.86273712,20739.0,20738.0,0.07375505]
[1673765913354,2.08093167,20739.0,20738.0,0.07375505]
[1673765914109,1.86273712,20739.0,20738.0,0.07375505]
[1673765914598,2.29492028,20739.0,20738.0,0.07375505]
[1673765914854,1.86273712,20739.0,20738.0,0.07375505]
[1673765915105,2.29492028,20739.0,20738.0,0.07375505]
[1673765915365,1.86273712,20739.0,20738.0,0.07375505]
[1673765915874,2.08588768,20739.0,20738.0,0.07375505]
[1673765916129,1.86273712,20739.0,20738.0,0.07375505]
[1673765916383,1.70309798,20739.0,20738.0,0.00526]
[1673765916676,1.93374614,20739.0,20738.0,0.00526]
[1673765917124,2.19708181,20739.0,20738.0,0.00526]
[1673765917372,1.83653365,20739.0,20738.0,0.00526]
[1673765917623,1.8301521,20739.0,20738.0,0.071519]
[1673765917875,1.61379953,20739.0,20738.0,0.071519]
[1673765918125,1.54579953,20739.0,20738.0,0.00026]
[1673765918381,2.12385394,20739.0,20738.0,0.00026]
[1673765919179,2.45085394,20739.0,20738.0,0.00626]
[1673765919404,2.42385394,20739.0,20738.0,0.00026]
[1673765919651,2.45085394,20739.0,20738.0,0.00626]
[1673765919902,2.42385394,20739.0,20738.0,0.00026]
[1673765920156,2.44785394,20739.0,20738.0,0.00026]
[1673765920436,2.42385394,20739.0,20738.0,0.00026]
[1673765920688,1.64167094,20739.0,20738.0,0.00026]
[1673765920935,0.79787881,20739.0,20738.0,0.00026]
[1673765921192,0.79787135,20739.0,20738.0,0.00026]
[1673765921450,0.58143353,20739.0,20738.0,0.00026]
[1673765921701,0.79787837,20739.0,20738.0,0.065519]
[1673765921984,0.5094071,20739.0,20738.0,0.065519]
[1673765922235,0.5364071,20739.0,20738.0,0.00026]
[1673765922493,0.5094071,20739.0,20738.0,0.00026]
[1673765923036,0.5094071,20739.0,20738.0,0.00526]
[1673765923309,0.82487977,20739.0,20738.0,0.00526]
[1673765923830,0.82487977,20739.0,20738.0,0.00026]
[1673765923831,0.88143353,20739.0,20738.0,0.00026]
[1673765924089,1.41575353,20739.0,20738.0,0.00526]
[1673765924626,1.70387771,20739.0,20738.0,0.00526]
[1673765924895,2.18606071,20739.0,20738.0,0.075]
[1673765925416,2.15906071,20739.0,20738.0,0.07]
[1673765925668,2.18650123,20739.0,20738.0,0.075]
[1673765925943,1.82551255,20739.0,20738.0,0.075]
[1673765926703,1.52551255,20739.0,20738.0,0.075]
[1673765926981,2.18651559,20739.0,20738.0,0.075]
[1673765927731,1.82551255,20739.0,20738.0,0.075]
[1673765930098,2.18655316,20739.0,20738.0,0.075]
[1673765930608,1.52551255,20739.0,20738.0,0.075]
[1673765930911,1.82551255,20739.0,20738.0,0.075]
[1673765933516,1.82551255,20739.0,20738.0,0.00682936]
[1673765934026,1.52551255,20739.0,20738.0,0.00682936]
[1673765934530,1.82551255,20739.0,20738.0,0.00682936]
[1673765935027,1.52551255,20739.0,20738.0,0.00682936]
[1673765935279,1.82551255,20739.0,20738.0,0.00682936]
[1673765936318,1.82551255,20739.0,20738.0,0.005]
[1673765939095,2.18655159,20739.0,20738.0,0.005]
[1673765939601,1.88655159,20739.0,20738.0,0.005]
[1673765941418,2.17535601,20739.0,20738.0,0.005]
[1673765942666,2.16858168,20739.0,20738.0,0.005]
[1673765943438,2.14344468,20739.0,20738.0,0.005]
[1673765943955,2.16858168,20739.0,20738.0,0.005]
[1673765944195,1.59826828,20739.0,20738.0,0.005]
[1673765944444,1.57313128,20739.0,20738.0,0.005]
[1673765944692,2.14339384,20739.0,20738.0,0.005]
[1673765944938,2.16853084,20739.0,20738.0,0.005]
[1673765945186,2.16003084,20739.0,20738.0,0.005]
[1673765945434,1.87122642,20739.0,20738.0,0.005]
[1673765945698,2.17122642,20739.0,20738.0,0.005]
[1673765946194,2.14608942,20739.0,20738.0,0.005]
[1673765946460,2.17122642,20739.0,20738.0,0.005]
[1673765946706,1.84608942,20739.0,20738.0,0.005]
[1673765946948,1.87122642,20739.0,20738.0,0.00268592]
[1673765947707,2.17122642,20739.0,20738.0,0.00268592]
[1673765948258,1.87122642,20739.0,20738.0,0.00268592]
[1673765949030,1.87972642,20739.0,20738.0,0.00268592]
[1673765949278,1.85458942,20739.0,20738.0,0.00268592]
[1673765949525,2.16857408,20739.0,20738.0,0.00268592]
[1673765949771,2.14343708,20739.0,20738.0,0.00268592]